fUSD/lending_fUSD_20240327
["ID","MTS","AMOUNT","RATE_DAILY","PERIOD"]
[320739971,1711543844436,-7841.77272824,0.00041,4]
[320739972,1711543844446,-855.8,0.00041013,2]
[320739973,1711543844455,-150.0,0.00041023,2]
[320739974,1711543844465,-150.0,0.00041054,2]
[320739975,1711543844474,-150.0,0.0004108,2]
[320739976,1711543844483,-1500.0,0.00041096,120]
[320739977,1711543844493,-183.0,0.00041096,2]
[320739978,1711543844502,-265.55,0.000411,7]
[320739979,1711543844511,-150.0,0.00041165,2]
[320739980,1711543844520,-1500.0,0.000412,2]
[320739981,1711543844530,-150.0,0.0004123,2]
[320739982,1711543844540,-11539.62397023,0.00041241,15]
[320739983,1711543844549,-1500.0,0.00041292,2]
[320739984,1711543844561,-300.0,0.00041305,2]
[320739985,1711543844570,-150.0,0.0004131,2]
[320739986,1711543844579,-150.0,0.00041368,2]
[320739987,1711543844589,-300.0,0.00041373,2]
[320739988,1711543844598,-1500.0,0.00041377,2]
[320739989,1711543844607,-300.0,0.00041386,2]
[320739990,1711543844617,-150.0,0.00041387,2]
[320739991,1711543844627,-1739.73052406,0.00041391,6]
[320739992,1711543844636,-1739.73052406,0.00041391,6]
[320739993,1711543844647,-1563.64146382,0.0004143,2]
[320739994,1711543844656,-500.0,0.00042,120]
[320739995,1711543844665,-9477.4053592,0.0004224,2]
[320739996,1711543844674,-7732.7715747,0.0004224,2]
[320739997,1711543844684,-211.72,0.000426,7]
[320739998,1711543844694,-150.0,0.00042735,120]
[320739999,1711543844703,-150.0,0.00042925,120]
[320740000,1711543844712,-250.0,0.00043,120]
[320740001,1711543844722,-650.0,0.00043,3]
[320740002,1711543844735,-152.08130486,0.00043049,18]
[320740003,1711543844744,-855.8,0.00043276,2]
[320740004,1711543844754,-692.13,0.00043507,15]
[320740005,1711543844763,-4892.85,0.00043562,2]
[320740006,1711543844773,-176.3,0.00043679,2]
[320740007,1711543844783,-186.66881899,0.00043708,61]
[320740008,1711543844792,-281.4723971,0.00044,120]
[320740009,1711543844802,-5000.0,0.00044,14]
[320740010,1711543844813,-269.83900737,0.00044444,7]
[320740011,1711543844824,-11539.62397023,0.00044604,19]
[320740012,1711543844834,-500.0,0.0004497,60]
[320740013,1711543844996,-1649.95566402,0.00045,4]
[320740014,1711543845005,-339.22517766,0.00045,10]
[320740015,1711543845015,-422.8,0.00045,7]
[320740016,1711543845024,-500.0,0.00045,14]
[320740017,1711543845036,-855.8,0.0004554,2]
[320740018,1711543845046,-692.13,0.00046247,15]
[320740019,1711543845056,-9477.4053592,0.00046313,2]
[320740020,1711543845065,-7732.7715747,0.00046313,2]
[320740021,1711543845074,-10000.0,0.00046722,30]
[320740022,1711543845083,-150.0,0.00046801,120]
[320740023,1711543845092,-150.48,0.00046804,2]
[320740024,1711543845101,-1026.94712488,0.00047,2]
[320740025,1711543845110,-8346.37,0.00047039,60]
[320740026,1711543845120,-1852.42,0.00047039,2]
[320740027,1711543845129,-11900.0,0.00047039,2]
[320740028,1711543845138,-540.285,0.00047103,2]
[320740029,1711543845148,-258.0,0.00047103,2]
[320740030,1711543845157,-192.0,0.00047103,2]
[320740031,1711543845166,-1176.0,0.00047103,2]
[320740032,1711543845175,-11711.48,0.00047103,2]
[320740033,1711543845184,-1046.0,0.00047103,2]
[320740034,1711543845193,-151.0,0.00047103,2]
[320740035,1711543845203,-192.142,0.00047103,2]
[320740036,1711543845212,-150.612,0.00047103,2]
[320740037,1711543845221,-150.859,0.00047103,2]
[320740038,1711543845230,-265.55,0.000472,7]
[320740039,1711543845239,-152.08130486,0.0004757,35]
[320740040,1711543845249,-855.8,0.00047804,2]
[320740041,1711543845259,-100000.0,0.00047919,7]
[320740042,1711543845268,-11539.62397023,0.00047968,24]
[320740043,1711543845278,-515.86,0.00047973,2]
[320740044,1711543845287,-150.0,0.00047973,2]
[320740045,1711543845296,-560.75087012,0.00048,4]
[320740046,1711543845306,-503.6111413,0.00048,100]
[320740047,1711543845315,-211.72,0.00048,7]
[320740048,1711543845325,-186.66881899,0.00048009,77]
[320740049,1711543845334,-156.14444312,0.00048117,30]
[320740050,1711543845344,-609.98857698,0.00048148,30]
[320740051,1711543845353,-609.98857698,0.0004819,30]
[320740052,1711543845363,-186.93,0.00048409,2]
[320740053,1711543845372,-1000.0,0.00048442,30]
[320740054,1711543845381,-166.8,0.00048451,2]
[320740055,1711543845390,-203.31808541,0.00048497,2]
[320740056,1711543845402,-194533.82982586,0.000485,120]
[320740057,1711543845412,-190.24451948,0.00048524,30]
[320740058,1711543845421,-1111.0,0.000487,4]
[320740059,1711543845431,-16721.08964175,0.000487,2]
[320740060,1711543845440,-1023.0,0.000487,117]
[320740061,1711543845450,-261.4879084,0.000487,2]
[320740062,1711543845461,-163.60210769,0.00048749,30]
[320740063,1711543845471,-1035.44,0.00048795,2]
[320740064,1711543845481,-318.31,0.00048795,2]
[320740065,1711543845490,-151.35,0.00048795,2]
[320740066,1711543845500,-152.76,0.00048795,2]
[320740067,1711543845510,-414.82,0.00048795,2]
[320740068,1711543845520,-203.31808541,0.00048797,2]
[320740069,1711543845530,-18053.59407368,0.00048798,10]
[320740070,1711543845540,-867.8152732,0.000488,3]
[320740071,1711543845550,-1013680.60030457,0.000488,2]
[320740072,1711543845561,-32767.37935355,0.000488,30]
[320740073,1711543845571,-158.12704685,0.00048876,30]
[320740074,1711543845582,-406.63617082,0.00048877,2]
[320740075,1711543845592,-807845.65611516,0.0004888,2]
[320740076,1711543845601,-692.13,0.00048986,15]
[320740077,1711543845611,-40832.57684633,0.00049,10]
[320740078,1711543845620,-953.345895,0.00049,30]
[320740079,1711543845631,-500.0,0.0004906,90]
[320740080,1711543845643,-609.98857698,0.000491,30]
[320740081,1711543845653,-1145.93,0.00049145,120]
[320740082,1711543845662,-422.8,0.000492,7]
[320740083,1711543845671,-48900.42663219,0.00049249,10]
[320740084,1711543845680,-156.14444312,0.00049292,30]
[320740085,1711543845691,-3399.89300546,0.000493,2]
[320740086,1711543845701,-163.57700478,0.00049305,30]
[320740087,1711543845710,-2000.0,0.00049315,30]
[320740088,1711543845719,-3073.0,0.00049315,120]
[320740089,1711543845730,-3119.0,0.00049315,120]
[320740091,1711543845739,-160.13519834,0.00049379,30]
[320740092,1711543845764,-2000.0,0.00049589,30]
[320740093,1711543845781,-190.24451948,0.00049597,30]
[320740094,1711543845802,-190.6268655,0.0004968,120]
[320740095,1711543845824,-186.93,0.00049779,120]
[320740096,1711543845842,-173.032719,0.00049798,84]
[320740097,1711543845859,-190.24451948,0.00049818,30]
[320740098,1711543845875,-646.01,0.00049863,30]
[320740099,1711543845896,-203.31808541,0.00049897,2]
[320740100,1711543845916,-320873.56236976,0.000499,30]
[320740101,1711543845934,-5000.0,0.0005,30]
[320740102,1711543845954,-15343.77528944,0.0005,20]
[320740103,1711543845971,-11783.40493046,0.0005,30]
[320740104,1711543845983,-2532.0,0.0005,120]
[320740105,1711543846000,-2500.0,0.0005,120]
[320740106,1711543846017,-7137.00982734,0.0005,14]
[320740107,1711543846031,-2000.0,0.0005,70]
[320740108,1711543846048,-1291.33627352,0.0005,30]
[320740109,1711543846066,-1800.0,0.0005,70]
[320740110,1711543846082,-567.75368568,0.0005,30]
[320740111,1711543846098,-150.0,0.0005,2]
[320740112,1711543846113,-207.21675421,0.0005,2]
[320740113,1711543846129,-2464.27161389,0.0005,30]
[320740114,1711543846144,-651.84195964,0.0005,50]
[320740115,1711543846163,-855.8,0.00050068,2]
[320740116,1711543846198,-867.88982644,0.000501,120]
[320740117,1711543846220,-537.0,0.00050103,120]
[320740118,1711543846240,-150.0,0.00050103,2]
[320740119,1711543846259,-150.0,0.00050103,120]
[320740120,1711543846277,-1176.0,0.00050103,120]
[320740121,1711543846295,-4000.0,0.00050137,120]
[320740122,1711543846312,-265.55,0.000502,7]
[320740123,1711543846329,-163.60210769,0.00050217,60]
[320740124,1711543846345,-156.14444312,0.00050278,60]
[320740125,1711543846361,-173.032719,0.00050298,86]
[320740126,1711543846377,-211.72,0.000503,7]
[320740127,1711543846392,-150.0,0.0005031,120]
[320740128,1711543846407,-190.24451948,0.00050354,60]
[320740129,1711543846422,-9477.4053592,0.00050387,2]
[320740130,1711543846437,-7732.7715747,0.00050387,2]
[320740131,1711543846452,-166.8,0.0005045,2]
[320740132,1711543846468,-609.98857698,0.00050459,60]
[320740133,1711543846482,-190.24451948,0.00050471,60]
[320740134,1711543846499,-173.032719,0.00050498,86]
[320740135,1711543846514,-609.98857698,0.00050635,60]
[320740136,1711543846529,-150.0,0.00050671,120]
[320740137,1711543846544,-194.35282094,0.000509,120]
[320740138,1711543846561,-194.3528209,0.000509,120]
[320740139,1711543846575,-194.3528209,0.000509,120]
[320740140,1711543846590,-194.3528209,0.000509,120]
[320740141,1711543846606,-194.3528209,0.000509,120]
[320740142,1711543846621,-194.3528209,0.000509,120]
[320740143,1711543846636,-194.3528209,0.000509,120]
[320740144,1711543846652,-194.3528209,0.000509,120]
[320740145,1711543846667,-194.3528209,0.000509,120]
[320740146,1711543846682,-194.3528209,0.000509,120]
[320740147,1711543846697,-194.3528209,0.000509,120]
[320740148,1711543846711,-194.3528209,0.000509,120]
[320740149,1711543846726,-194.3528209,0.000509,120]
[320740150,1711543846742,-194.3528209,0.000509,120]
[320740151,1711543846756,-194.3528209,0.000509,120]
[320740152,1711543846771,-194.3528209,0.000509,120]
[320740153,1711543846785,-194.3528209,0.000509,120]
[320740154,1711543846801,-194.3528209,0.000509,120]
[320740155,1711543846817,-194.3528209,0.000509,120]
[320740156,1711543846832,-194.3528209,0.000509,120]
[320740157,1711543846847,-190.24451948,0.00050913,60]
[320740158,1711543846863,-43076.0,0.00051,120]
[320740159,1711543846877,-30103.0,0.00051,120]
[320740160,1711543846892,-309.0,0.00051,120]
[320740161,1711543846908,-552.39897224,0.00051,52]
[320740162,1711543846925,-162.12929693,0.00051048,60]
[320740163,1711543846935,-1053.4426883,0.000511,30]
[320740164,1711543846944,-157.032721,0.00051198,101]
[320740165,1711543846954,-173.032719,0.00051198,85]
[320740166,1711543846964,-160.13519834,0.00051225,60]
[320740167,1711543846974,-609.98857698,0.00051239,60]
[320740168,1711543846984,-11539.62397023,0.00051331,28]
[320740169,1711543846993,-163.60210769,0.00051462,60]
[320740170,1711543847003,-173.032719,0.00051478,86]
[320740171,1711543847013,-157.032721,0.00051498,101]
[320740172,1711543847284,-173.032719,0.00051498,86]
[320740173,1711543847303,-21592.48966197,0.000515,120]
[320740174,1711543847313,-422.8,0.000515,7]
[320740175,1711543847322,-500.0,0.00051505,90]
[320740176,1711543847332,-190.24451948,0.00051539,60]
[320740177,1711543847341,-190.24451948,0.00051603,60]
[320740178,1711543847350,-190.24451948,0.00051706,60]
[320740179,1711543847360,-609.98857698,0.00051714,60]
[320740180,1711543847369,-692.13,0.00051726,120]
[320740181,1711543847378,-157.032721,0.00051798,101]
[320740182,1711543847388,-190.24451948,0.00051807,60]
[320740183,1711543847397,-156.90115204,0.0005188,60]
[320740184,1711543847406,-156.90115204,0.00051917,60]
[320740185,1711543847415,-60043.83051263,0.00052,120]
[320740186,1711543847424,-2437.42170417,0.00052,4]
[320740187,1711543847434,-17591.0,0.00052,120]
[320740188,1711543847443,-552.39897224,0.00052,52]
[320740189,1711543847452,-150.88,0.00052,120]
[320740190,1711543847462,-150.88,0.00052,120]
[320740191,1711543847470,-150.88,0.00052,120]
[320740192,1711543847480,-150.88,0.00052,120]
[320740193,1711543847489,-150.88,0.00052,120]
[320740194,1711543847498,-150.88,0.00052,120]
[320740195,1711543847507,-150.88,0.00052,120]
[320740196,1711543847516,-150.88,0.00052,120]
[320740197,1711543847525,-150.88,0.00052,120]
[320740198,1711543847535,-150.88,0.00052,120]
[320740199,1711543847544,-150.88,0.00052,120]
[320740200,1711543847554,-150.88,0.00052,120]
[320740201,1711543847564,-150.88,0.00052,120]
[320740202,1711543847573,-150.88,0.00052,120]
[320740203,1711543847582,-150.88,0.00052,120]
[320740204,1711543847592,-150.88,0.00052,120]
[320740205,1711543847601,-150.88,0.00052,120]
[320740206,1711543847610,-150.88,0.00052,120]
[320740207,1711543847620,-150.88,0.00052,120]
[320740208,1711543847629,-150.88,0.00052,120]
[320740209,1711543847638,-150.88,0.00052,120]
[320740210,1711543847648,-150.88,0.00052,120]
[320740211,1711543847657,-276.95832969,0.0005205,120]
[320740212,1711543847666,-276.95832969,0.0005205,120]
[320740213,1711543847675,-276.95832969,0.0005205,120]
[320740214,1711543847684,-276.95832969,0.0005205,120]
[320740215,1711543847693,-276.95832969,0.0005205,120]
[320740216,1711543847702,-276.95832969,0.0005205,120]
[320740217,1711543847711,-276.95832969,0.0005205,120]
[320740218,1711543847721,-276.95832969,0.0005205,120]
[320740219,1711543847731,-276.95832969,0.0005205,120]
[320740220,1711543847741,-276.95832969,0.0005205,120]
[320740221,1711543847750,-276.95832969,0.0005205,120]
[320740222,1711543847760,-276.95832969,0.0005205,120]
[320740223,1711543847769,-276.95832969,0.0005205,120]
[320740224,1711543847779,-276.95832969,0.0005205,120]
[320740225,1711543847788,-276.95832969,0.0005205,120]
[320740226,1711543847798,-276.95832969,0.0005205,120]
[320740227,1711543847807,-276.95832969,0.0005205,120]
[320740228,1711543847816,-276.95832969,0.0005205,120]
[320740229,1711543847825,-276.95832969,0.0005205,120]
[320740230,1711543847834,-277.45,0.0005205,120]
[320740231,1711543847843,-156.81210363,0.0005205,120]
[320740232,1711543847853,-156.81210363,0.0005205,120]
[320740233,1711543847862,-156.81210363,0.0005205,120]
[320740234,1711543847871,-156.81210363,0.0005205,120]
[320740235,1711543847881,-156.81210363,0.0005205,120]
[320740236,1711543847890,-156.81210363,0.0005205,120]
[320740237,1711543847900,-156.81210363,0.0005205,120]
[320740238,1711543847909,-156.81210363,0.0005205,120]
[320740239,1711543847918,-157.31,0.0005205,120]
[320740240,1711543847927,-183.09042518,0.0005205,120]
[320740241,1711543847936,-183.09042518,0.0005205,120]
[320740242,1711543847945,-183.59,0.0005205,120]
[320740243,1711543847955,-151.52270026,0.0005205,120]
[320740244,1711543847963,-151.52270026,0.0005205,120]
[320740245,1711543847973,-151.52270026,0.0005205,120]
[320740246,1711543847982,-151.52270026,0.0005205,120]
[320740247,1711543847990,-151.52270026,0.0005205,120]
[320740248,1711543847999,-151.52270026,0.0005205,120]
[320740249,1711543848008,-151.52270026,0.0005205,120]
[320740250,1711543848017,-151.52270026,0.0005205,120]
[320740251,1711543848027,-151.52270026,0.0005205,120]
[320740252,1711543848036,-152.02,0.0005205,120]
[320740253,1711543848047,-500.0,0.00052053,90]
[320740254,1711543848057,-500.0,0.00052054,60]
[320740255,1711543848066,-1500.0,0.00052054,120]
[320740256,1711543848075,-152.08130486,0.00052091,52]
[320740257,1711543848084,-205.032719,0.00052098,84]
[320740258,1711543848094,-265.55,0.000521,14]
[320740259,1711543848103,-211.72,0.000521,7]
[320740260,1711543848112,-157.032721,0.00052198,103]
[320740261,1711543848121,-190.24451948,0.0005229,60]
[320740262,1711543848131,-609.98857698,0.00052304,60]
[320740263,1711543848141,-186.66881899,0.00052311,92]
[320740264,1711543848150,-855.8,0.00052332,2]
[320740265,1711543848160,-609.98857698,0.00052391,60]
[320740266,1711543848169,-162.12929693,0.00052417,60]
[320740267,1711543848179,-166.8,0.00052449,2]
[320740268,1711543848189,-190.24451948,0.00052463,60]
[320740269,1711543848199,-173.032719,0.00052478,87]
[320740270,1711543848208,-157.032721,0.00052498,103]
[320740271,1711543848218,-1984.88,0.000525,120]
[320740272,1711543848228,-151.22191435,0.00052563,60]
[320740273,1711543848237,-500.0,0.00052601,90]
[320740274,1711543848246,-500.0,0.00052602,60]
[320740275,1711543848256,-609.98857698,0.00052619,60]
[320740276,1711543848265,-157.032721,0.00052798,103]
[320740277,1711543848274,-173.032719,0.00052898,92]
[320740278,1711543848284,-297723.43688216,0.000529,30]
[320740279,1711543848295,-609.98857698,0.00052908,60]
[320740280,1711543848304,-151.0,0.00052951,2]
[320740281,1711543848315,-243.70899005,0.0005299,120]
[320740282,1711543848323,-568.11635614,0.00053,2]
[320740283,1711543848332,-9221.64878868,0.00053,4]
[320740284,1711543848342,-155.71,0.00053,7]
[320740285,1711543848351,-155.71,0.00053,7]
[320740286,1711543848360,-155.71,0.00053,7]
[320740287,1711543848369,-552.39897224,0.00053,53]
[320740288,1711543848379,-159.796,0.00053048,120]
[320740289,1711543848389,-159.797,0.00053048,120]
[320740290,1711543848399,-159.797,0.00053048,120]
[320740291,1711543848409,-159.797,0.00053048,120]
[320740292,1711543848419,-159.797,0.00053048,120]
[320740293,1711543848429,-1648.557,0.00053048,120]
[320740294,1711543848438,-1648.558,0.00053048,120]
[320740295,1711543848448,-1648.558,0.00053048,120]
[320740296,1711543848457,-1648.557,0.00053048,120]
[320740297,1711543848466,-1648.558,0.00053048,120]
[320740298,1711543848476,-150.0,0.00053103,2]
[320740299,1711543848485,-150.0,0.00053103,120]
[320740300,1711543848494,-1176.0,0.00053103,120]
[320740301,1711543848503,-500.0,0.0005314,120]
[320740302,1711543848513,-500.0,0.00053149,90]
[320740303,1711543848523,-500.0,0.0005315,60]
[320740304,1711543848534,-190.24451948,0.00053182,60]
[320740305,1711543848544,-173.032721,0.00053198,105]
[320740306,1711543848553,-151.032719,0.00053198,95]
[320740307,1711543848564,-156.14444312,0.00053222,60]
[320740308,1711543848574,-440.54457694,0.0005331,2]
[320740309,1711543848583,-156.90115204,0.00053345,60]
[320740310,1711543848593,-2000.0,0.00053424,120]
[320740311,1711543848602,-2000.0,0.00053424,120]
[320740312,1711543848611,-2000.0,0.00053424,120]
[320740313,1711543848620,-2000.0,0.00053424,120]
[320740314,1711543848629,-2000.0,0.00053424,120]
[320740315,1711543848639,-2000.0,0.00053424,120]
[320740316,1711543848649,-2000.0,0.00053424,120]
[320740317,1711543848659,-2000.0,0.00053424,120]
[320740318,1711543848667,-2000.0,0.00053424,120]
[320740319,1711543848677,-1298.07213974,0.00053424,120]
[320740320,1711543848687,-157.032721,0.00053498,105]
[320740321,1711543848695,-151.032719,0.00053498,98]
[320740322,1711543848705,-422.8,0.000535,30]
[320740323,1711543848715,-203.31808541,0.00053524,2]
[320740324,1711543848726,-40087.21176694,0.00053527,2]
[320740325,1711543848736,-151.0,0.00053527,120]
[320740326,1711543848746,-151.0,0.00053527,120]
[320740327,1711543848756,-151.0,0.00053527,120]
[320740328,1711543848766,-160.07183501,0.00053547,60]
[320740329,1711543848777,-524.0,0.00053672,120]
[320740330,1711543848787,-500.0,0.00053697,90]
[320740331,1711543848797,-151.032719,0.00053698,100]
[320740332,1711543848806,-151.0,0.00053698,120]
[320740333,1711543848817,-151.0,0.00053698,120]
[320740334,1711543848826,-500.0,0.00053698,60]
[320740335,1711543848836,-605.0,0.00053699,120]
[320740336,1711543848846,-756.0,0.00053699,120]
[320740337,1711543848854,-500.0,0.0005371,60]
[320740338,1711543848864,-500.0,0.0005371,60]
[320740339,1711543848873,-386.60453288,0.0005375,30]
[320740340,1711543848883,-168.032721,0.00053798,105]
[320740341,1711543848893,-157.032718,0.00053798,101]
[320740342,1711543848903,-156.14444312,0.00053808,60]
[320740343,1711543848913,-302.0,0.00053841,4]
[320740344,1711543848922,-156.14444312,0.0005388,60]
[320740345,1711543848932,-173.032719,0.00053898,99]
[320740346,1711543848942,-152.69,0.00053902,120]
[320740347,1711543848951,-156.718,0.00053907,120]
[320740348,1711543848960,-151.22191435,0.00053944,60]
[320740349,1711543848970,-524.0,0.00053945,120]
[320740350,1711543848979,-166.56049651,0.00053945,120]
[320740351,1711543848989,-609.98857698,0.0005395,60]
[320740352,1711543848999,-609.98857698,0.00053994,60]
[320740353,1711543849008,-6400.00000064,0.00054,14]
[320740354,1711543849017,-2000.0,0.00054,120]
[320740355,1711543849027,-2920.63029993,0.00054,14]
[320740356,1711543849036,-10000.0,0.00054,14]
[320740357,1711543849045,-309.9848945,0.00054,4]
[320740358,1711543849055,-10000.0,0.00054,14]
[320740359,1711543849065,-150.0,0.00054,38]
[320740360,1711543849075,-151.0,0.00054,120]
[320740361,1711543849085,-151.0,0.00054,30]
[320740362,1711543849095,-151.0,0.00054,120]
[320740363,1711543849104,-255.357405,0.00054,120]
[320740364,1711543849114,-151.0,0.00054,120]
[320740365,1711543849124,-151.0,0.00054,120]
[320740366,1711543849133,-151.0,0.00054,120]
[320740367,1711543849144,-151.0,0.00054,120]
[320740368,1711543849154,-151.0,0.00054,120]
[320740369,1711543849164,-552.39897224,0.00054,54]
[320740370,1711543849173,-223.0,0.0005407,73]
[320740371,1711543849182,-151.22191435,0.00054071,60]
[320740372,1711543849191,-151.032719,0.00054098,100]
[320740373,1711543849201,-173.032721,0.00054198,107]
[320740374,1711543849209,-157.032718,0.00054198,102]
[320740375,1711543849219,-507.0,0.00054219,120]
[320740376,1711543849229,-500.0,0.00054245,90]
[320740377,1711543849239,-500.0,0.00054245,90]
[320740378,1711543849248,-500.0,0.00054246,60]
[320740379,1711543849258,-742.1963591,0.00054273,2]
[320740380,1711543849267,-6300.2943984,0.00054273,2]
[320740381,1711543849276,-151.0,0.00054295,120]
[320740382,1711543849285,-254.352028,0.00054295,60]
[320740383,1711543849294,-173.032719,0.00054298,103]
[320740384,1711543849303,-1000.0,0.000543,120]
[320740385,1711543849314,-451157.21707392,0.00054373,30]
[320740386,1711543849324,-151.0,0.00054373,120]
[320740387,1711543849333,-151.0,0.00054373,120]
[320740388,1711543849342,-151.0,0.00054373,120]
[320740389,1711543849352,-285.549847,0.00054373,120]
[320740390,1711543849361,-151.0,0.00054373,120]
[320740391,1711543849371,-151.0,0.00054373,120]
[320740392,1711543849381,-151.0,0.00054373,120]
[320740393,1711543849390,-205.651128,0.00054373,120]
[320740394,1711543849399,-151.0,0.00054373,120]
[320740395,1711543849408,-151.0,0.00054373,120]
[320740396,1711543849417,-151.0,0.00054373,7]
[320740397,1711543849427,-151.0,0.00054373,120]
[320740398,1711543849436,-151.0,0.00054373,120]
[320740399,1711543849445,-151.0,0.00054373,120]
[320740400,1711543849455,-151.0,0.00054373,120]
[320740401,1711543849464,-87598.15315706,0.00054376,30]
[320740402,1711543849473,-286.01237163,0.00054382,30]
[320740403,1711543849482,-5102.52786094,0.00054389,30]
[320740404,1711543849491,-5102.52786094,0.0005439,30]
[320740405,1711543849500,-927.24869042,0.00054391,30]
[320740406,1711543849509,-87598.15315706,0.00054393,30]
[320740407,1711543849518,-87598.15315706,0.00054395,30]
[320740408,1711543849528,-927.24869042,0.00054397,30]
[320740409,1711543849537,-151.032719,0.00054398,97]
[320740410,1711543849547,-87598.15315706,0.00054416,30]
[320740411,1711543849556,-530.88682393,0.00054419,30]
[320740412,1711543849567,-286.01237163,0.00054423,30]
[320740413,1711543849578,-203.31808541,0.00054424,2]
[320740414,1711543849587,-286.01237163,0.00054426,30]
[320740415,1711543849596,-451157.21707392,0.00054427,30]
[320740416,1711543849606,-150.14963409,0.00054428,30]
[320740417,1711543849615,-927.24869042,0.00054432,30]
[320740418,1711543849624,-150.14963409,0.00054436,30]
[320740419,1711543849634,-286.01237163,0.00054437,30]
[320740420,1711543849647,-166.8,0.00054448,2]
[320740421,1711543849655,-286.01237163,0.00054453,30]
[320740422,1711543849665,-9477.4053592,0.0005446,2]
[320740423,1711543849674,-7732.7715747,0.0005446,2]
[320740424,1711543849683,-286.01237163,0.00054466,30]
[320740425,1711543849693,-692.13,0.00054466,120]
[320740426,1711543849702,-927.24869042,0.00054467,30]
[320740427,1711543849712,-150.14963409,0.00054468,30]
[320740428,1711543849722,-15053.58577,0.00054478,14]
[320740429,1711543849731,-530.88682393,0.00054487,30]
[320740430,1711543849740,-530.88682393,0.0005449,30]
[320740431,1711543849750,-507.0,0.00054493,120]
[320740432,1711543849759,-157.032721,0.00054498,107]
[320740433,1711543849769,-157.032718,0.00054498,103]
[320740434,1711543849779,-265.66918693,0.00054504,7]
[320740435,1711543849789,-2776.192029,0.00054504,2]
[320740436,1711543849799,-87598.15315706,0.00054505,30]
[320740437,1711543849810,-530.88682393,0.00054513,30]
[320740438,1711543849820,-150.14963409,0.00054523,30]
[320740439,1711543849829,-530.88682393,0.00054524,30]
[320740440,1711543849838,-927.24869042,0.00054526,30]
[320740441,1711543849848,-5102.52786094,0.00054533,30]
[320740442,1711543849857,-927.24869042,0.00054537,30]
[320740443,1711543849867,-203.31808541,0.00054538,2]
[320740444,1711543849876,-451157.21707392,0.00054541,30]
[320740445,1711543849886,-500.0,0.00054541,60]
[320740446,1711543849896,-500.0,0.00054541,60]
[320740447,1711543849906,-151.0,0.00054541,120]
[320740448,1711543849916,-151.0,0.00054541,120]
[320740449,1711543849925,-151.0,0.00054541,120]
[320740450,1711543849935,-151.0,0.00054541,120]
[320740451,1711543849945,-151.0,0.00054541,120]
[320740452,1711543849955,-87598.15315706,0.00054541,30]
[320740453,1711543849965,-927.24869042,0.00054545,30]
[320740454,1711543849976,-150.14963409,0.00054551,30]
[320740455,1711543849985,-286.01237163,0.00054552,30]
[320740456,1711543849994,-150.14963409,0.00054555,30]
[320740457,1711543850004,-151.0,0.00054559,120]
[320740458,1711543850014,-151.0,0.00054559,120]
[320740459,1711543850023,-151.0,0.00054559,30]
[320740460,1711543850033,-151.0,0.00054559,120]
[320740461,1711543850043,-151.0,0.00054559,120]
[320740462,1711543850052,-151.0,0.00054559,120]
[320740463,1711543850198,-151.0,0.00054559,120]
[320740464,1711543850219,-151.0,0.00054559,120]
[320740465,1711543850228,-151.0,0.00054559,120]
[320740466,1711543850238,-451157.21707392,0.00054559,30]
[320740467,1711543850247,-927.24869042,0.0005456,30]
[320740468,1711543850256,-151.0,0.00054564,120]
[320740469,1711543850265,-151.0,0.00054564,120]
[320740470,1711543850275,-151.0,0.00054564,120]
[320740471,1711543850284,-276.538599,0.00054564,120]